fUSD/lending_fUSD_20250804
["ID","MTS","AMOUNT","RATE_DAILY","PERIOD"]
[377209802,1754292641065,-191.28,0.00041967,2]
[377209803,1754292641074,-151.629,0.00042383,64]
[377209804,1754292641084,-943.20466214,0.00042473,120]
[377209805,1754292641094,-250.0,0.0004251,120]
[377209806,1754292641104,-666.0,0.0004253,3]
[377209807,1754292641114,-406.2,0.00042554,2]
[377209808,1754292641123,-235.43,0.00042703,3]
[377209809,1754292641133,-278.82927056,0.00042762,47]
[377209810,1754292641143,-1000.0,0.00042804,120]
[377209811,1754292641153,-513.0,0.00042915,13]
[377209814,1754292641162,-361.84,0.00042929,120]
[377209816,1754292641172,-150.0,0.00043,90]
[377209819,1754292641181,-150.0,0.00043014,90]
[377209820,1754292641191,-731.66,0.00043047,120]
[377209821,1754292641200,-150.0,0.00043107,2]
[377209822,1754292641210,-537.65215446,0.00043254,2]
[377209823,1754292641220,-685.24294196,0.00043401,2]
[377209824,1754292641229,-151.0,0.00043471,2]
[377209825,1754292641239,-151.0,0.00043471,2]
[377209826,1754292641248,-151.0,0.00043471,2]
[377209827,1754292641258,-151.0,0.00043471,2]
[377209828,1754292641268,-151.0,0.00043471,2]
[377209829,1754292641278,-151.0,0.00043471,2]
[377209830,1754292641288,-151.0,0.00043471,2]
[377209831,1754292641298,-151.0,0.00043471,2]
[377209832,1754292641307,-151.0,0.00043471,2]
[377209833,1754292641317,-151.0,0.00043471,2]
[377209834,1754292641326,-151.0,0.00043471,2]
[377209835,1754292641336,-151.0,0.00043471,2]
[377209836,1754292641345,-151.0,0.00043471,2]
[377209837,1754292641360,-151.0,0.00043471,2]
[377209838,1754292641369,-151.0,0.00043471,2]
[377209839,1754292641378,-151.0,0.00043471,2]
[377209840,1754292641388,-151.0,0.00043471,2]
[377209841,1754292641398,-600.0,0.00043471,2]
[377209842,1754292641408,-151.0,0.00043471,2]
[377209843,1754292641418,-600.0,0.00043471,2]
[377209844,1754292641428,-151.0,0.00043471,2]
[377209845,1754292641438,-600.0,0.00043471,2]
[377209846,1754292641447,-151.0,0.00043471,2]
[377209847,1754292641457,-257.48092199,0.00043471,2]
[377209848,1754292641468,-832.83372946,0.00043548,2]
[377209849,1754292641478,-278.82927056,0.0004359,48]
[377209850,1754292641488,-167.1,0.00043638,2]
[377209851,1754292641497,-980.42451695,0.00043695,2]
[377209852,1754292641507,-1000.0,0.00043715,14]
[377209853,1754292641517,-200.0,0.000438,15]
[377209854,1754292641527,-534.72745168,0.0004381,2]
[377209855,1754292641537,-657.50521,0.0004384,20]
[377209856,1754292641546,-1128.01530445,0.00043842,2]
[377209857,1754292641556,-876.21753588,0.00043871,2]
[377209858,1754292641565,-500.0,0.000439,16]
[377209859,1754292641575,-155.01562755,0.000439,120]
[377209860,1754292641584,-809.0,0.00043937,2]
[377209861,1754292641593,-176.653,0.00043937,2]
[377209862,1754292641603,-157.96,0.00043961,30]
[377209863,1754292641613,-1275.60609195,0.00043989,2]
[377209864,1754292641622,-592.62,0.0004399,2]
[377209865,1754292641632,-353.06,0.0004399,2]
[377209866,1754292641642,-353.06,0.0004399,2]
[377209867,1754292641651,-39182.64655436,0.00044,44]
[377209868,1754292642384,-280.80583378,0.00044,44]
[377209869,1754292642396,-5365.00347703,0.00044,44]
[377209875,1754292644643,-1214.74199037,0.00044,44]
[377209876,1754292644656,-875.64481671,0.00044,44]
[377209877,1754292644690,-259.75918832,0.00044,44]
[377209878,1754292644703,-807.66080702,0.00044,44]
[377209879,1754292644716,-2013.73733241,0.00044,44]
[377209881,1754292644726,-1470.26266759,0.00044,54]
[377209883,1754292646253,-7566.87476736,0.00044,54]
[377209884,1754292647314,-40962.86256505,0.00044,54]
[377209885,1754292647324,-1000.0,0.0004401,14]
[377209886,1754292647334,-191.28,0.00044065,2]
[377209887,1754292647344,-484.2340136,0.000441,28]
[377209888,1754292647358,-1423.19687945,0.00044136,2]
[377209889,1754292647369,-353.06,0.0004419,2]
[377209890,1754292647379,-350.0,0.00044199,2]
[377209891,1754292647388,-11014.93790125,0.00044199,51]
[377209892,1754292648232,-277.66002518,0.00036,20]
[377209893,1754292648424,-222.98641682,0.00036,20]
[377209894,1754292648436,-1251.0,0.00043937,2]
[377209895,1754292648446,-1021.6098734,0.00044199,51]
[377209896,1754292648459,-2979.94474097,0.00044199,51]
[377209897,1754292648568,-479.10763242,0.00044199,51]
[377209913,1754292948263,264.40160034,0.0003013,120]
[377209915,1754293091589,166.61,0.00013699,2]
[377209958,1754293831612,-168.85446481,0.00020685,3]
[377209959,1754293831622,-173.0,0.00028437,3]
[377209960,1754293831633,-1553.69401967,0.00029,7]
[377209961,1754293831645,-400.55033239,0.00032944,2]
[377209962,1754293831658,-99.44966761,0.00032944,2]
[377209963,1754293831668,-173.0,0.00034004,6]
[377209964,1754293831680,-500.0,0.0003615,2]
[377209965,1754293831689,-152.0,0.0003626,3]
[377209966,1754293831699,-350.63,0.00037305,2]
[377209967,1754293831708,-152.0,0.00037447,4]
[377209968,1754293831718,-152.0,0.00038635,5]
[377209969,1754293831727,-153.0,0.00039,120]
[377209970,1754293831737,-350.63,0.00039035,2]
[377209971,1754293831746,-173.0,0.0003957,15]
[377209972,1754293831757,-152.0,0.00039822,6]
[377209973,1754293831771,-153.0,0.0004,120]
[377209974,1754293831781,-410.18130039,0.00040073,10]
[377209975,1754293831793,-103.81869961,0.00040073,10]
[377209976,1754293831805,-841.59890878,0.00040352,2]
[377209977,1754293831815,-1349.23857773,0.00040561,2]
[377209978,1754293831829,-251.93876027,0.00040561,2]
[377209979,1754293831839,-350.63,0.00040765,2]
[377209980,1754293831849,-203.55024861,0.000409,43]
[377209981,1754293831858,-30.40111993,0.0004091,5]
[377209982,1754293831929,-1169.59888007,0.0004091,5]
[377209983,1754293831939,-157.96,0.00040911,30]
[377209984,1754293831949,-153.0,0.00041,120]
[377209985,1754293831959,-152.0,0.00041009,7]
[377209986,1754293831970,-200.0,0.00041096,20]
[377209987,1754293831979,-442.20530248,0.000411,2]
[377209988,1754293831991,-1.79469752,0.000411,2]
[377209989,1754293832001,-203.55024849,0.00041107,44]
[377209991,1754293832011,-224.0,0.00041112,5]
[377209993,1754293832022,-104.86988657,0.00041314,44]
[377210005,1754293832122,-98.68036192,0.00041314,44]
[377210007,1754293832131,-167.96,0.00041453,2]
[377210009,1754293832141,-548.650865,0.00041462,2]
[377210012,1754293832152,-8604.04779534,0.00041462,2]
[377210016,1754293832179,-514.61217,0.00041462,2]
[377210018,1754293832190,-14232.68916966,0.00041462,2]
[377210020,1754293832199,-580.44,0.00041469,2]
[377210022,1754293832208,-666.0,0.00041473,3]
[377210024,1754293832218,-203.55024849,0.00041521,44]
[377210025,1754293832228,-175.0,0.00041567,7]
[377210028,1754293832238,-203.55024849,0.00041728,45]
[377210030,1754293832247,-220.35,0.00041845,2]
[377210032,1754293832257,-203.55024849,0.00041934,45]
[377210035,1754293832267,-153.0,0.00042,120]
[377210038,1754293832277,-250.0,0.0004207,120]
[377210040,1754293832287,-191.28,0.00042141,2]
[377210043,1754293832296,-203.55024849,0.00042141,46]
[377210046,1754293832307,-152.0,0.00042197,8]
[377210049,1754293832317,-203.55024849,0.00042348,46]
[377210051,1754293832327,-1462.94722926,0.00042431,120]
[377210053,1754293832337,-396.25,0.00042461,30]
[377210055,1754293832348,-350.63,0.00042496,120]
[377210057,1754293832358,-151.629,0.00042496,64]
[377210059,1754293832367,-203.55024849,0.00042555,46]
[377210061,1754293832378,-514.0,0.00042564,10]
[377210062,1754293832389,-716.0,0.000426,2]
[377210063,1754293832398,-203.55024849,0.00042762,47]
[377210064,1754293832409,-1000.0,0.00042764,2]
[377210065,1754293832419,-203.55024849,0.00042969,47]
[377210066,1754293832429,-153.0,0.00043,120]
[377210067,1754293832439,-150.0,0.00043,90]
[377210068,1754293832449,-466.51,0.00043041,30]
[377210069,1754293832459,-818.41,0.00043041,30]
[377210070,1754293832469,-818.41,0.00043041,30]
[377210071,1754293832479,-150.0,0.00043068,2]
[377210072,1754293832489,-176.13,0.0004309,120]
[377210073,1754293832500,-150.0,0.00043132,2]
[377210074,1754293832509,-203.55024849,0.00043176,48]
[377210075,1754293832519,-42.15170611,0.00043178,30]
[377210088,1754293837781,-450.01009135,0.00043178,30]
[377210089,1754293837793,-430.23699733,0.00043178,30]
[377210090,1754293837806,-232.14120521,0.00043178,30]
[377210091,1754293837816,-172.81,0.00043178,30]
[377210092,1754293837826,-150.0,0.00043178,30]
[377210093,1754293837837,-36.57372181,0.0004321,2]
[377210094,1754293837849,-114.04627819,0.0004321,2]
[377210095,1754293837859,-549.10706859,0.00043215,2]
[377210096,1754293837869,-699.84234232,0.00043362,2]
[377210098,1754293837879,-203.55024849,0.00043383,48]
[377210100,1754293837894,-152.0,0.00043384,9]
[377210102,1754293837905,-372.85,0.00043403,30]
[377210104,1754293837915,-165.39,0.00043404,30]
[377210105,1754293837925,-165.39,0.00043404,30]
[377210106,1754293837934,-165.39,0.00043404,30]
[377210107,1754293837944,-165.39,0.00043404,30]
[377210108,1754293837955,-164.81,0.00043404,30]
[377210109,1754293837966,-850.57761604,0.00043509,2]
[377210110,1754293837976,-203.55024849,0.0004359,48]
[377210111,1754293837986,-783.03643037,0.00043627,2]
[377210112,1754293837996,-701.0,0.0004363,2]
[377210113,1754293838007,-1001.31288977,0.00043656,2]
[377210114,1754293838017,-700.0,0.000437,15]
[377210115,1754293838027,-500.0,0.000437,15]
[377210116,1754293838037,-1952.45126,0.0004376,2]
[377210117,1754293838047,-203.55024849,0.00043797,49]
[377210118,1754293838057,-1500.0,0.000438,15]
[377210119,1754293838067,-1100.0,0.000438,15]
[377210120,1754293838077,-1152.0481635,0.00043803,2]
[377210121,1754293838087,-1000.0,0.00043807,14]
[377210123,1754293838104,-783.03643038,0.00043842,2]
[377210125,1754293838114,-2300.0,0.000439,16]
[377210127,1754293838124,-1700.0,0.000439,16]
[377210129,1754293838134,-823.47689534,0.000439,15]
[377210131,1754293838147,-1302.78343723,0.0004395,2]
[377210133,1754293838157,-1000.0,0.00043962,14]
[377210135,1754293838167,-503.40573836,0.00043973,10]
[377210137,1754293838176,-150.0,0.00043982,2]
[377210139,1754293838186,-407.01,0.00043999,40]
[377210141,1754293838196,-50000.0,0.00044,44]
[377210143,1754293838205,-50000.0,0.00044,54]
[377210145,1754293838215,-500.05920191,0.00044,30]
[377210147,1754293838224,-153.0,0.00044,120]
[377210149,1754293838235,-562.0,0.00044,30]
[377210151,1754293838244,-1000.0,0.00044,30]
[377210153,1754293838254,-1000.0,0.00044,30]
[377210155,1754293838263,-1017.64179015,0.00044,120]
[377210157,1754293838273,-203.55024849,0.00044003,49]
[377210159,1754293838283,-1000.0,0.00044069,14]
[377210161,1754293838292,-1453.51871096,0.00044096,2]
[377210163,1754293838302,-14999.999999,0.000441,120]
[377210165,1754293838312,-500.0,0.00044173,10]
[377210167,1754293838322,-500.0,0.00044173,10]
[377210169,1754293838333,-500.78520876,0.00044173,10]
[377210171,1754293838344,-500.0,0.00044173,10]
[377210173,1754293838353,-456.86878018,0.00044173,5]
[377210175,1754293838363,-161.79,0.00044188,2]
[377210177,1754293838373,-161.79,0.00044188,2]
[377210179,1754293838383,-200.0,0.00044198,51]
[377210181,1754293838393,-207.4,0.00044198,51]
[377210183,1754293838403,-215.0738,0.00044198,51]
[377210185,1754293838413,-223.0315306,0.00044198,51]
[377210187,1754293838422,-231.28369723,0.00044198,51]
[377210190,1754293838433,-239.84119403,0.00044198,51]
[377210192,1754293838442,-248.71531821,0.00044198,51]
[377210194,1754293838452,-257.91778498,0.00044198,51]
[377210196,1754293838462,-267.46074303,0.00044198,51]
[377210198,1754293838471,-277.35679052,0.00044198,51]
[377210200,1754293838481,-287.61899177,0.00044198,51]
[377210202,1754293838491,-298.26089446,0.00044198,51]
[377210204,1754293838502,-309.29654756,0.00044198,51]
[377210206,1754293838512,-320.74051982,0.00044198,51]
[377210208,1754293838522,-3888.0,0.00044198,51]
[377210210,1754293838533,-332.60791905,0.00044198,51]
[377210212,1754293838543,-4031.856,0.00044198,51]
[377210214,1754293838553,-440.11764486,0.00044198,51]
[377210216,1754293838564,-4181.034672,0.00044198,51]
[377210218,1754293838575,-4335.73295486,0.00044198,51]
[377210220,1754293838587,-4496.15507419,0.00044198,51]
[377210222,1754293838598,-4662.51281194,0.00044198,51]
[377210224,1754293838609,-4835.02578598,0.00044198,51]
[377210226,1754293838620,-151.0,0.00044198,51]
[377210228,1754293838630,-5013.92174006,0.00044198,51]
[377210230,1754293838640,-151.0,0.00044198,51]
[377210232,1754293838651,-5199.43684444,0.00044198,51]
[377210233,1754293838662,-5391.81600769,0.00044198,51]
[377210234,1754293838672,-5591.31319997,0.00044198,51]
[377210235,1754293838682,-5798.19178837,0.00044198,51]
[377210236,1754293838826,-5440.10401998,0.00044198,51]
[377210237,1754293838836,-437.79901629,0.00044199,60]
[377210238,1754293838845,-200.0,0.00044199,7]
[377210239,1754293838855,-645.75805,0.00044199,22]
[377210240,1754293838864,-203.55024849,0.0004421,50]
[377210241,1754293838874,-823.47689525,0.00044217,15]
[377210242,1754293838883,-350.63,0.00044226,120]
[377210243,1754293838893,-704.64900493,0.0004423,2]
[377210244,1754293838903,-151.0,0.00044243,2]
[377210245,1754293838912,-290.90298831,0.00044243,2]
[377210246,1754293838922,-1604.25398469,0.00044243,2]
[377210247,1754293838931,-156.28,0.00044278,120]
[377210248,1754293838940,-2162.47920653,0.000443,15]
[377210249,1754293838950,-244.1201044,0.00044301,21]
[377210250,1754293838960,-661.93069691,0.00044301,15]
[377210251,1754293838969,-244.12010438,0.00044321,21]
[377210252,1754293838978,-336.1393,0.0004433,120]
[377210253,1754293838988,-158.26362286,0.0004434,19]
[377210254,1754293838997,-153.10484765,0.0004434,120]
[377210255,1754293839008,-244.12010438,0.0004434,21]
[377210256,1754293839018,-170.38881552,0.0004434,15]
[377210257,1754293839027,-150.0,0.00044341,2]
[377210258,1754293839036,-161.79,0.00044349,2]
[377210259,1754293839045,-369677.04751773,0.00044359,49]
[377210260,1754293839054,-2272.7481166,0.00044359,61]
[377210261,1754293839063,-500.0,0.00044359,2]
[377210262,1754293839073,-151.0,0.00044359,2]
[377210263,1754293839082,-500.0,0.00044359,2]
[377210264,1754293839093,-500.0,0.00044359,2]
[377210265,1754293839103,-500.0,0.00044359,2]
[377210266,1754293839113,-416.03518578,0.00044359,2]
[377210267,1754293839122,-500.0,0.00044359,2]
[377210268,1754293839132,-590.71309864,0.00044359,2]
[377210269,1754293839142,-500.0,0.00044359,2]
[377210270,1754293839156,-500.0,0.00044359,2]
[377210271,1754293839165,-500.0,0.00044359,2]
[377210272,1754293839174,-500.0,0.00044359,2]
[377210273,1754293839183,-515.47910692,0.00044359,2]
[377210274,1754293839194,-500.0,0.00044359,2]
[377210275,1754293839203,-500.0,0.00044359,2]
[377210276,1754293839213,-500.0,0.00044359,2]
[377210277,1754293839223,-500.0,0.00044359,2]
[377210278,1754293839232,-151.0,0.00044359,2]
[377210279,1754293839241,-500.0,0.00044359,2]
[377210280,1754293839250,-151.0,0.00044359,2]
[377210281,1754293839261,-500.0,0.00044359,2]
[377210282,1754293839270,-500.0,0.00044359,2]
[377210283,1754293839280,-500.0,0.00044359,2]
[377210284,1754293839290,-500.0,0.00044359,2]
[377210285,1754293839299,-500.0,0.00044359,2]
[377210286,1754293839309,-151.0,0.00044359,2]
[377210287,1754293839318,-151.0,0.00044359,2]
[377210288,1754293839327,-151.0,0.00044359,2]
[377210289,1754293839337,-151.0,0.00044359,2]
[377210290,1754293839346,-151.0,0.00044359,2]
[377210291,1754293839356,-151.0,0.00044359,2]
[377210292,1754293839365,-151.0,0.00044359,2]
[377210293,1754293839374,-151.0,0.00044359,2]
[377210294,1754293839384,-151.0,0.00044359,2]
[377210295,1754293839394,-300.0,0.00044359,2]
[377210296,1754293839403,-151.0,0.00044359,2]
[377210297,1754293839412,-300.0,0.00044359,2]
[377210298,1754293839422,-300.0,0.00044359,2]
[377210299,1754293839431,-151.0,0.00044359,2]
[377210300,1754293839440,-300.0,0.00044359,2]
[377210301,1754293839449,-300.0,0.00044359,2]
[377210302,1754293839458,-300.0,0.00044359,2]
[377210303,1754293839467,-300.0,0.00044359,2]
[377210304,1754293839476,-300.0,0.00044359,2]
[377210305,1754293839486,-500.0,0.00044359,2]
[377210306,1754293839495,-300.0,0.00044359,2]
[377210307,1754293839505,-500.0,0.00044359,2]
[377210308,1754293839514,-300.0,0.00044359,2]
[377210310,1754293839523,-500.0,0.00044359,2]
[377210312,1754293839533,-300.0,0.00044359,2]
[377210314,1754293839542,-500.0,0.00044359,2]
[377210316,1754293839550,-500.0,0.00044359,2]
[377210317,1754293839560,-500.0,0.00044359,2]
[377210318,1754293839569,-500.0,0.00044359,2]
[377210319,1754293839578,-500.0,0.00044359,2]
[377210320,1754293839588,-212.38697808,0.00044359,2]
[377210321,1754293839597,-307.08230604,0.00044359,2]
[377210322,1754293839607,-160.0,0.00044359,2]
[377210323,1754293839617,-500.0,0.00044359,2]
[377210324,1754293839629,-500.0,0.00044359,2]
[377210325,1754293839639,-500.0,0.00044359,2]
[377210326,1754293839649,-418.77521514,0.00044359,2]
[377210327,1754293839660,-500.0,0.00044373,10]
[377210328,1754293839672,-160.0,0.0004438,2]
[377210329,1754293839682,-211.425049,0.00044382,2]
[377210330,1754293839691,-1754.98925843,0.0004439,2]
[377210331,1754293839701,-161.79,0.0004439,2]
[377210332,1754293839710,-161.79,0.0004439,2]
[377210333,1754293839720,-150.0,0.000444,2]
[377210334,1754293839730,-107232.342709,0.00044401,3]
[377210335,1754293839739,-21433.1227919,0.00044401,3]
[377210336,1754293839748,-13404.0428386,0.00044401,3]
[377210337,1754293839758,-17146.4982335,0.00044401,3]
[377210338,1754293839768,-192.11228027,0.0004441,15]
[377210339,1754293839777,-55726.1192588,0.0004441,3]
[377210340,1754293839786,-6563.0,0.00044411,120]
[377210341,1754293839797,-30605.0,0.00044411,120]
[377210342,1754293839806,-500.0,0.00044414,2]
[377210343,1754293839815,-203.55024849,0.00044417,50]
[377210344,1754293839825,-107232.342709,0.0004442,3]
[377210345,1754293839835,-120025.487634,0.0004442,3]
[377210346,1754293839844,-155.70521398,0.0004442,7]
[377210347,1754293839854,-161.25,0.0004442,2]
[377210348,1754293839863,-150.0,0.00044429,12]
[377210349,1754293839873,-249.41,0.00044429,15]
[377210350,1754293839884,-249.41,0.00044429,15]
[377210351,1754293839894,-249.41,0.00044429,15]
[377210352,1754293839903,-457.2201239,0.0004443,3]
[377210353,1754293839912,-93828.2998701,0.0004443,3]
[377210354,1754293839922,-1000.0,0.00044439,2]
[377210355,1754293839931,-1000.0,0.00044439,2]
[377210356,1754293839941,-155.0,0.00044439,120]
[377210357,1754293839952,-174.92,0.00044439,120]
[377210358,1754293839961,-999.0,0.00044439,120]
[377210359,1754293839971,-300.0,0.00044439,30]
[377210360,1754293839980,-312.01142982,0.00044439,30]
[377210361,1754293839989,-1000000.0,0.0004444,30]
[377210362,1754293839998,-224.34080277,0.0004444,30]
[377210363,1754293840008,-32239.36608975,0.0004444,30]
[377210364,1754293840018,-1119.04058445,0.0004444,30]
[377210365,1754293840028,-500.0,0.00044469,2]
[377210366,1754293840037,-501.0987251,0.00044473,10]
[377210367,1754293840046,-501.25218818,0.00044473,10]
[377210368,1754293840056,-500.0,0.00044473,10]
[377210369,1754293840067,-211.425049,0.000445,3]
[377210370,1754293840078,-211.425049,0.000445,30]
[377210371,1754293840088,-166.61,0.00044521,2]
[377210372,1754293840097,-500.0,0.00044524,2]
[377210373,1754293840106,-823.47689525,0.00044533,15]
[377210374,1754293840116,-1000.0,0.00044553,14]
[377210375,1754293840127,-150.0,0.00044561,2]
[377210376,1754293840137,-152.0,0.00044572,10]
[377210377,1754293840146,-2162.47920646,0.00044572,15]
[377210379,1754293840155,-500.0,0.00044579,2]
[377210381,1754293840166,-203.55024849,0.00044624,50]
[377210383,1754293840175,-500.0,0.00044634,2]
[377210385,1754293840186,-150.0,0.00044641,2]
[377210387,1754293840197,-687.0,0.0004465,2]
[377210388,1754293840206,-500.0,0.00044689,2]
[377210389,1754293840215,-661.93069684,0.0004469,15]
[377210390,1754293840224,-1000.0,0.00044721,10]
[377210391,1754293840234,-500.0,0.00044744,2]
[377210392,1754293840243,-150.0,0.00044769,2]
[377210393,1754293840252,-1000.0,0.00044798,14]
[377210394,1754293840261,-500.0,0.00044799,2]
[377210395,1754293840271,-150.0,0.00044822,2]
[377210396,1754293840281,-203.55024849,0.00044831,51]
[377210397,1754293840291,-2162.47920646,0.00044844,15]
[377210398,1754293840301,-823.47689525,0.0004485,15]
[377210399,1754293840310,-1000.0,0.00044854,14]
[377210400,1754293840321,-500.0,0.00044854,2]
[377210401,1754293840331,-150.0,0.00044877,90]
[377210402,1754293840340,-168.74495425,0.00044907,2]
[377210403,1754293840351,-153.29,0.00044909,14]
[377210404,1754293840361,-500.0,0.00044909,2]
[377210405,1754293840371,-1143.93161619,0.00044945,2]
[377210406,1754293840381,-150.0,0.00044952,2]
[377210407,1754293840392,-1000.0,0.00044952,14]
[377210408,1754293840402,-150.0,0.00044972,2]
[377210409,1754293840412,-150.0,0.00044973,3]
[377210410,1754293840423,-501.91916091,0.00044973,10]
[377210411,1754293840433,-500.0,0.00044973,10]
[377210412,1754293840443,-666.0,0.00044999,30]
[377210413,1754293840453,-204.2894589,0.00044999,120]
[377210414,1754293840463,-50000.0,0.00045,45]
[377210415,1754293840473,-50000.0,0.00045,55]
[377210416,1754293840483,-1000.0,0.00045,120]
[377210417,1754293840493,-841.59890878,0.00045,3]
[377210418,1754293840502,-153.0,0.00045,120]
[377210419,1754293840513,-6508.31052078,0.00045,120]
[377210420,1754293840522,-157.96,0.00045002,120]
[377210421,1754293840532,-150.0,0.0004503,2]
[377210423,1754293840541,-203.55024849,0.00045038,51]
[377210424,1754293840551,-150.0,0.00045039,2]
[377210425,1754293840560,-150.0,0.00045045,2]
[377210426,1754293840570,-514.0,0.00045055,16]
[377210427,1754293840580,-150.0,0.00045071,2]
[377210428,1754293840590,-661.93069684,0.00045079,15]
[377210429,1754293840600,-443.46960884,0.00045092,28]
[377210430,1754293840610,-183.55,0.00045113,14]
[377210431,1754293840619,-2162.47920646,0.00045116,15]
[377210432,1754293840628,-4398.33,0.00045125,2]
[377210434,1754293840638,-150.99,0.00045125,2]
[377210435,1754293840648,-5199.07,0.00045125,2]
[377210436,1754293840657,-150.0,0.0004513,2]
[377210437,1754293840666,-173.0,0.00045137,120]
[377210438,1754293840675,-153.29,0.00045141,14]
[377210439,1754293840685,-150.0,0.00045147,2]
[377210440,1754293840694,-150.0,0.00045166,2]
[377210441,1754293840704,-823.47689525,0.00045166,15]
[377210442,1754293840713,-150.0,0.00045213,2]
[377210443,1754293840722,-62855.39,0.00045216,30]
[377210444,1754293840732,-150.0,0.00045237,2]
[377210445,1754293840742,-203.55024849,0.00045245,52]
[377210446,1754293840751,-584.85073515,0.00045268,10]
[377210447,1754293840761,-150.0,0.00045276,2]
[377210448,1754293840770,-1000.0,0.00045305,14]
[377210449,1754293840779,-531.74983631,0.0004532,2]
[377210450,1754293840790,-600.0,0.00045336,14]
[377210451,1754293840799,-150.0,0.00045352,2]
[377210452,1754293840808,-150.0,0.00045356,2]
[377210453,1754293840817,-150.0,0.00045367,2]
[377210454,1754293840827,-2162.47920646,0.00045388,15]
[377210455,1754293840836,-150.0,0.00045398,2]
[377210456,1754293840846,-150.0,0.00045404,2]
[377210457,1754293840855,-280.0,0.00045445,60]
[377210458,1754293840865,-203.55024849,0.00045452,52]
[377210459,1754293840874,-150.0,0.00045452,2]
[377210460,1754293840884,-150.0,0.00045458,2]
[377210461,1754293840893,-661.93069684,0.00045467,15]
[377210462,1754293840903,-677.72037961,0.00045474,2]
[377210463,1754293840912,-443.46960884,0.00045478,28]
[377210464,1754293840921,-150.0,0.00045478,2]
[377210465,1754293840930,-823.47689525,0.00045483,15]
[377210466,1754293840939,-150.0,0.00045518,2]
[377210467,1754293840948,-1000.0,0.00045521,10]
[377210468,1754293840958,-170.38881552,0.00045527,20]
[377210469,1754293840967,-150.0,0.00045534,2]
[377210470,1754293840976,-150.0,0.00045561,2]
[377210471,1754293840985,-1000.0,0.00045563,14]
[377210472,1754293840995,-150.0,0.00045581,120]
[377210473,1754293841005,-150.0,0.00045607,2]
[377210474,1754293841015,-823.69092291,0.00045628,2]
[377210475,1754293841024,-150.0,0.00045651,2]
[377210476,1754293841033,-203.55024849,0.00045659,52]
[377210477,1754293841043,-2162.47920646,0.00045661,15]
[377210478,1754293841052,-150.0,0.00045673,2]
[377210479,1754293841061,-441.0,0.00045678,30]
[377210480,1754293841070,-673.0,0.0004568,2]
[377210481,1754293841080,-372.03260622,0.00045728,2]
[377210482,1754293841090,-160.0,0.00045728,2]
[377210483,1754293841099,-466.7,0.00045753,30]
[377210484,1754293841110,-152.0,0.00045759,11]
[377210485,1754293841127,-150.0,0.00045764,2]
[377210486,1754293841137,-969.66146621,0.00045783,2]
[377210487,1754293841147,-768.41737339,0.00045784,14]
[377210488,1754293841156,-8087.29961935,0.00045788,10]
[377210489,1754293841166,-823.47689525,0.00045799,15]
[377210490,1754293841175,-174.92,0.00045809,120]
[377210491,1754293841184,-150.0,0.00045814,2]
[377210492,1754293841193,-150.0,0.00045844,2]
[377210493,1754293841203,-661.93069684,0.00045856,15]
[377210494,1754293841212,-443.46960884,0.00045864,28]
[377210495,1754293841222,-203.55024849,0.00045866,53]
[377210496,1754293841231,-2300.0,0.000459,16]
[377210497,1754293841241,-150.0,0.00045904,2]
[377210498,1754293841250,-150.0,0.00045914,2]
[377210499,1754293841260,-327.73341973,0.00045916,2]